Cogmind - Beta 17 @@@ ROGUE MODE // 2026.08.20 @ 10:32:27 Player: IsAway Result: Self-destructed Performance ------------- Evolutions (2) 1000 Regions Visited (6) 1200 Robots Destroyed (1) 5 Value Destroyed (26) 26 Prototype IDs (24) 480 Alien Tech Used (0) 0 Bonus (570) 570 TOTAL SCORE: 3281 Bonus ------- Pacifist 270 Aligned with FarCom 300 Cogmind --------- Core Integrity 347/550 Matter 300/300 Energy 217/280 System Corruption 29% Temperature Cool (0) Movement Core (50) Location -8/Storage Parts ------- > --- POWER (2) -------- Heavy Ion Engine > --- PROPULSION (4) --- (None) > --- UTILITY (3) ------ Weight Redist. System Improved Terrain Scanner > --- WEAPON (2) ------- (None) > --- INVENTORY (5) ---- Small Storage Unit Compact Matter Pod (150) Melee Analysis Suite Improved Propulsion Shielding Deploy-a-Sentry Peak State ------------ > --- POWER ------------ Heavy Ion Engine Deuterium Engine > --- PROPULSION ------- Wheel Compact Wheel Hover Unit Airjet > --- UTILITY ---------- Small Storage Unit Weight Redist. System Improved Terrain Scanner > --- WEAPON ----------- Particle Cannon Flail > --- INVENTORY -------- Light Ion Engine Small Storage Unit Compact Matter Pod Melee Analysis Suite Improved Propulsion Shielding Deploy-a-Sentry Deploy-a-Sentry Deploy-a-Sentry [Rating: 25] Favorites ----------- Power Light Ion Engine Engine Light Ion Engine Propulsion Wheel Wheel Wheel Hover Unit Hover Unit Utility Small Storage Unit Device Terrain Scanner Storage Small Storage Unit Weapon Mining Laser Energy Gun Medium Laser Energy Cannon Particle Cannon Ballistic Gun Light Assault Rifle Special Weapon Mining Laser Impact Weapon Flail Slashing Weapon Mining Claw Build | -11 -10 -10 -10 -9 -8 -8 ------- Run | Yrd Mat Min Exi Min Mat Sto Slots Evolved 4 | . . . . . 4 . Power 1 | . . . . . 1 . Propulsion 2 | . . . . . 2 . Utility 1 | . . . . . 1 . Weapon . | . . . . . . . Parts Attached 20 | 6 2 . . 4 4 4 Power 3 | 1 . . . . 1 1 Engine 3 | 1 . . . . 1 1 Core . | . . . . . . . Reactor . | . . . . . . . Propulsion 6 | 2 . . . 2 1 1 Treads . | . . . . . . . Leg . | . . . . . . . Wheel 3 | 2 . . . . 1 . Hover 3 | . . . . 2 . 1 Flight . | . . . . . . . Utility 5 | 1 1 . . . 1 2 Device 3 | . 1 . . . 1 1 Storage 2 | 1 . . . . . 1 Processor . | . . . . . . . Hackware . | . . . . . . . Protection . | . . . . . . . Artifact . | . . . . . . . Weapon 6 | 2 1 . . 2 1 . Energy Gun 1 | 1 . . . . . . Energy Cannon 1 | . . . . . 1 . Ballistic Gun 1 | 1 . . . . . . Ballistic Cannon . | . . . . . . . Launcher . | . . . . . . . Special Weapon 1 | . 1 . . . . . Impact Weapon 1 | . . . . 1 . . Slashing Weapon 1 | . . . . 1 . . Piercing Weapon . | . . . . . . . Special Melee Weapon . | . . . . . . . Unidentified Prototypes 1 | . . . . . . 1 Parts Lost 11 | . . . . . 1 10 Power 1 | . . . . . . 1 Propulsion 5 | . . . . . 1 4 Utility 1 | . . . . . . 1 Weapon 2 | . . . . . . 2 Highest Loss Streak 5 | . . . . . 1 5 To Critical Strikes 2 | . . . . . . 2 Average Backups 4 | 1 4 6 6 5 4 4 Power . | . 1 1 1 . . . Propulsion 1 | . 1 2 1 1 . . Utility 2 | . . . 1 2 3 3 Weapon 1 | . 1 3 1 1 1 . Tool/Special . | . . . . . . . Unused Backups 11 | . . . 5 2 . 4 Power 3 | . . . 3 . . . Propulsion 1 | . . . . 1 . . Utility 5 | . . . 1 . . 4 Weapon 2 | . . . 1 1 . . Tool/Special . | . . . . . . . Average Slot Usage (%) 96 | . 89 100 100 100 95 81 Engine 14 | . 14 14 14 14 17 15 Wheel 18 | . 28 28 28 16 15 12 Hover 9 | . . . . 11 17 11 Device 14 | . 3 14 14 14 16 18 Storage 12 | . 14 14 14 14 9 9 Energy Gun 7 | . 14 14 14 8 . . Energy Cannon 1 | . . . . . 3 4 Special Weapon 9 | . 1 14 14 14 5 3 Impact Weapon 5 | . . . . 5 9 9 Peak Build Rating 25 | 6 7 7 9 11 19 25 Average Rating 11 | 4 6 7 8 9 18 19 On Entrance 8 | . 6 7 7 9 11 17 Avg Prop Armor Cover (%) 8 | . . . . . 9 6 Naked Turns . | . . . . . . . Heaviest Build 26 | 11 12 12 12 12 24 26 Greatest Support 32 | 26 26 26 26 26 32 32 Greatest Overweight (x) 2 | . . . . . 2 1 Average Overweight (x) . | . . . . . . . Largest Inventory Capacity 8 | 8 8 8 8 8 8 8 Average Capacity 7 | 7 8 8 8 8 8 7 Most Carried 8 | 2 7 6 8 8 8 8 Average Carried 7 | 1 4 6 7 7 7 7 Final Capacity 8 | 8 8 8 8 8 8 5 Final Carried 8 | 2 6 6 8 8 7 5 Class Distribution -------------------- 27% | Mutant 22% | Skirmisher 21% | Scientist-Assassin 17% | Scout 11% | Assassin Dominant Class ---------------- Mutant | -10/Materials Mutant | -10/Mines Mutant | -10/Exiles Skirmisher | -9/Mines Scientist-Assassin | -8/Materials Scientist-Assassin | -8/Storage Resources | -11 -10 -10 -10 -9 -8 -8 ----------- Run | Yrd Mat Min Exi Min Mat Sto Matter Collected 621 | 219 . . 67 50 . 285 Remotely . | . . . . . . . Salvage Created 11 | . . . . . 11 . Parts . | . . . . . . . Haulers Intercepted . | . . . . . . . Recyclers Shooed . | . . . . . . . Parts Field Recycled . | . . . . . . . Retrieved Matter . | . . . . . . . Parts Self-Destructed . | . . . . . . . Prevented . | . . . . . . . Parts Restored . | . . . . . . . Kills | -11 -10 -10 -10 -9 -8 -8 ------- Run | Yrd Mat Min Exi Min Mat Sto Combat Hostiles Destroyed . | . . . . . . . Classes Destroyed 1 | . . . . . 1 . Operator 1 | . . . . . 1 . Best Kill Streak 1 | . . . . . 1 . Combat Bots Only . | . . . . . . . Max Kills in Single Turn 1 | . . . . . 1 . Gunslinging . | . . . . . . . Exploded . | . . . . . . . Melee . | . . . . . . . Uniques/NPCs Destroyed . | . . . . . . . Combat | -11 -10 -10 -10 -9 -8 -8 -------- Run | Yrd Mat Min Exi Min Mat Sto Hostile Shots Fired 23 | . 1 . . . 22 . Missed 8 | . 1 . . . 7 . Hits 15 | . . . . . 15 . Projectile 15 | . . . . . 15 . Critical Strikes 2 | . . . . . 2 . Damage Taken 987 | . . . . . 230 757 Core 203 | . . . . . 43 160 Absorbed by Shields . | . . . . . . . Core Remaining (%) 100 | 100 . . . 100 . . Volleys Fired 19 | . 2 . . 17 . . Largest 2 | . 2 . . 1 . . Hottest 100 | . 100 . . 100 . . Shots Fired 20 | . 3 . . 17 . . Gun 2 | . 2 . . . . . Cannon . | . . . . . . . Launcher . | . . . . . . . Special 18 | . 1 . . 17 . . Kinetic 1 | . 1 . . . . . Thermal 19 | . 2 . . 17 . . Explosive . | . . . . . . . Electromagnetic . | . . . . . . . Robot Hit Streak . | . . . . . . . Robot Miss Streak . | . . . . . . . Penetration Max . | . . . . . . . Secondary Targets . | . . . . . . . Shots Hit Robots 1 | . . . . . 1 . Core Hits . | . . . . . . . Critical Kills . | . . . . . . . Critical Parts Destroyed . | . . . . . . . Critical Strikes . | . . . . . . . Melee Attacks 45 | . . . . 8 4 33 Impact 45 | . . . . 8 4 33 Slashing . | . . . . . . . Piercing . | . . . . . . . Sneak Attacks 1 | . . . . . 1 . Combat Hostiles . | . . . . . . . Follow-up Attacks . | . . . . . . . Damage Inflicted 106 | . . . . . 106 . Guns . | . . . . . . . Cannons . | . . . . . . . Explosions . | . . . . . . . Melee 106 | . . . . . 106 . Ramming . | . . . . . . . Kinetic . | . . . . . . . Thermal . | . . . . . . . Explosive . | . . . . . . . Electromagnetic . | . . . . . . . Impact 106 | . . . . . 106 . Slashing . | . . . . . . . Piercing . | . . . . . . . Highest Corruption 24 | . 2 2 2 2 . 24 Average Corruption 2 | . 2 2 2 2 . 18 Corruption Purged . | . . . . . . . Corruption Blocked . | . . . . . . . Effects 15 | . 1 1 3 7 . 3 Message Errors 7 | . 1 . 3 3 . . Matter Fused 3 | . . 1 . 1 . 1 Energy Discharges 1 | . . . . . . 1 Data Loss (minor) 1 | . . . . 1 . . Data Loss (major) 2 | . . . . 1 . 1 Alerts 1 | . . . . 1 . . Overload Shots . | . . . . . . . Overflow Damage 76 | . . . . . 76 . Projectiles . | . . . . . . . Explosions . | . . . . . . . Melee 76 | . . . . . 76 . Knockbacks 1 | . . . . . 1 . Impact 1 | . . . . . 1 . Kinetic . | . . . . . . . Secondary . | . . . . . . . Self-Inflicted Damage . | . . . . . . . Shots . | . . . . . . . Rammed . | . . . . . . . Targets Rammed . | . . . . . . . Kicked . | . . . . . . . Crushed . | . . . . . . . Highest Temperature 154 | . 30 . . 154 . . Average Temperature 53 | . 15 . . 56 . . Received Heat Transfer 54 | . . . . . 54 . Siege Activations . | . . . . . . . Martial Activations . | . . . . . . . Shielding Activations . | . . . . . . . Robots Disrupted . | . . . . . . . Combat Hostiles . | . . . . . . . Robots Corrupted 1 | . . . . . 1 . Combat Hostiles . | . . . . . . . Parts Fried 1 | . . . . . 1 . Impact Corruptions 3 | . . . . . 3 . Robots Melted . | . . . . . . . Combat Hostiles . | . . . . . . . Parts Melted . | . . . . . . . Heat Transferred . | . . . . . . . Parts Sabotaged . | . . . . . . . Parts Stolen . | . . . . . . . Parts Stripped . | . . . . . . . Power Chain Reactions . | . . . . . . . Alert | -11 -10 -10 -10 -9 -8 -8 ------- Run | Yrd Mat Min Exi Min Mat Sto Maximum Alert Level . | . . . . . . . Low Security (%) 100 | 100 100 100 . 100 100 100 Level 1 . | . . . . . . . Level 2 . | . . . . . . . Level 3 . | . . . . . . . Level 4 . | . . . . . . . Level 5 . | . . . . . . . High Security . | . . . . . . . Max Security . | . . . . . . . Peak Influence 16 | . 1 . . 3 15 16 Initial 1 | . . . . . . 1 Average . | . . . . . . 3 Influence Increases 70 | . 1 . . 8 27 34 Destroy 0b10 Robot/NC 5 | . . . . . 5 . Successful Hack 4 | . . . . . 4 . Disable Machine 15 | . . . . . . 15 Destroy Structure 16 | . 1 . . 8 3 4 Partial Spotted 15 | . . . . . 15 . Lose Combat Pursuer 15 | . . . . . . 15 Influence Decreases 70 | . 1 . . 8 22 39 Entered New Map 4 | . . . . . . 4 Time Decay 48 | . 1 . . 8 12 27 Lost Part 18 | . . . . . 10 8 Squads Dispatched . | . . . . . . . Investigation . | . . . . . . . Extermination . | . . . . . . . Reinforcement . | . . . . . . . Assault . | . . . . . . . Garrison . | . . . . . . . Intercept . | . . . . . . . Searches Triggered . | . . . . . . . Construction Impeded . | . . . . . . . Haulers Reinforced . | . . . . . . . Active Scanning Responses . | . . . . . . . Cargo Convoy Interrupts . | . . . . . . . Stealth | -11 -10 -10 -10 -9 -8 -8 --------- Run | Yrd Mat Min Exi Min Mat Sto Distress Signals 1 | . . . . . . 1 Communications Jammed . | . . . . . . . Distress Signals . | . . . . . . . Times Spotted 5 | . 2 . . . 3 . Peak Tracking Total 3 | . 3 . . . 3 2 Tactical Retreats 1 | . . . . . . 1 Traps | -11 -10 -10 -10 -9 -8 -8 ------- Run | Yrd Mat Min Exi Min Mat Sto Traps Triggered 1 | . 1 . . . . . Indirectly . | . . . . . . . Trap Hack Attempts . | . . . . . . . Triggered . | . . . . . . . Disarmed . | . . . . . . . Reprogrammed . | . . . . . . . Reused . | . . . . . . . Traps Extracted . | . . . . . . . Installed . | . . . . . . . Triggered . | . . . . . . . Machines | -11 -10 -10 -10 -9 -8 -8 ---------- Run | Yrd Mat Min Exi Min Mat Sto Machines Disabled 1 | . . . . . . 1 Max in Single Turn 1 | . . . . . . 1 Garrison Access 1 | . . . . . . 1 Machines Repaired . | . . . . . . . Machines Dismantled . | . . . . . . . Machines Sabotaged . | . . . . . . . Overloaded Fab Kills . | . . . . . . . Hacking | -11 -10 -10 -10 -9 -8 -8 --------- Run | Yrd Mat Min Exi Min Mat Sto Machines Accessed 5 | . . . 1 . 3 1 Terminals 1 | . . . . . 1 . Fabricators . | . . . . . . . Repair Stations 1 | . . . . . 1 . Recycling Units . | . . . . . . . Scanalyzers 1 | . . . . . 1 . Garrison Access 1 | . . . . . . 1 Total Hacks 17 | . . . 1 . 14 2 Successful 10 | . . . 1 . 8 1 Failed 6 | . . . . . 5 1 Catastrophic . | . . . . . . . Database Lockouts 1 | . . . . . 1 . Manual 4 | . . . 1 . 3 . Terminals 3 | . . . . . 3 . Fabricators . | . . . . . . . Repair Stations 2 | . . . . . 2 . Recycling Units . | . . . . . . . Scanalyzers 9 | . . . . . 9 . Garrison Access 2 | . . . . . . 2 Terminal Hacks 2 | . . . 1 . 1 . Record 1 | . . . . . 1 . Proto ID Catalog 1 | . . . 1 . . . Fabricator Hacks . | . . . . . . . Repair Station Hacks . | . . . . . . . Recycling Unit Hacks . | . . . . . . . Scanalyzer 7 | . . . . . 7 . Retrieve Study 7 | . . . . . 7 . Garrison Access Hacks 1 | . . . . . . 1 Seal Access 1 | . . . . . . 1 Unauthorized Hacks . | . . . . . . . Terminals . | . . . . . . . Fabricators . | . . . . . . . Repair Stations . | . . . . . . . Recycling Units . | . . . . . . . Scanalyzers . | . . . . . . . Garrison Access . | . . . . . . . Data Cores Recovered 1 | . . . . . 1 . Used . | . . . . . . . Hacking Detections 3 | . . . . . 3 . Full Trace Events . | . . . . . . . Feedback Events . | . . . . . . . Feedback Blocked . | . . . . . . . Robot Schematics Acquired . | . . . . . . . Robots Built . | . . . . . . . Authchips . | . . . . . . . Time . | . . . . . . . Total Robot Build Rating . | . . . . . . . Part Schematics Acquired . | . . . . . . . Parts Built . | . . . . . . . Authchips . | . . . . . . . Time . | . . . . . . . Total Part Build Rating . | . . . . . . . Part Studies Acquired 7 | . . . . . 7 . Parts Repaired . | . . . . . . . Time . | . . . . . . . Parts Recycled . | . . . . . . . Recycled Matter . | . . . . . . . Retrieved Matter . | . . . . . . . Retrieved Components . | . . . . . . . Parts Scanalyzed . | . . . . . . . Part Schematics Acquired . | . . . . . . . Parts Damaged . | . . . . . . . Bothacking | -11 -10 -10 -10 -9 -8 -8 ------------ Run | Yrd Mat Min Exi Min Mat Sto Used RIF Installer . | . . . . . . . Robots Hacked . | . . . . . . . Non-combat . | . . . . . . . Combat . | . . . . . . . Robot Hacks Applied . | . . . . . . . Relay Couplers Released . | . . . . . . . Fabnet Peak Effective % . | . . . . . . . Robots Rewired . | . . . . . . . Allies Hacked . | . . . . . . . Hacks Repelled . | . . . . . . . Allies | -11 -10 -10 -10 -9 -8 -8 -------- Run | Yrd Mat Min Exi Min Mat Sto Total Allies . | . . . . . . . Largest Group . | . . . . . . . Highest-Rated Group . | . . . . . . . Highest-Rated Ally . | . . . . . . . Total Orders . | . . . . . . . Ally Attacks . | . . . . . . . Total Damage . | . . . . . . . Kills . | . . . . . . . Allies Corrupted . | . . . . . . . Allies Melted . | . . . . . . . Intel | -11 -10 -10 -10 -9 -8 -8 ------- Run | Yrd Mat Min Exi Min Mat Sto Active Infowar (turns) 1425 | . 22 24 269 602 336 172 Terrain 1425 | . 22 24 269 602 336 172 Robot Analysis Total . | . . . . . . . Derelict Logs Recovered 1 | . . . . 1 . . Drone Launches . | . . . . . . . Drone Recoveries . | . . . . . . . Exploration | -11 -10 -10 -10 -9 -8 -8 ------------- Run | Yrd Mat Min Exi Min Mat Sto Turns Passed 1553 | 48 101 24 269 602 336 173 Spaces Moved 1320 | 41 97 27 285 603 175 92 Core 1 | 1 . . . . . . Treads . | . . . . . . . Legs . | . . . . . . . Wheels 985 | 40 97 27 285 282 163 91 Hover 334 | . . . . 321 12 1 Flight . | . . . . . . . Fastest Speed 50 | 50 90 90 90 56 56 80 Average Speed 80 | 89 90 90 90 71 84 80 Slowest Speed 126 | 100 90 90 90 90 110 126 Overloaded Moves . | . . . . . . . Propulsion Burnouts . | . . . . . . . Robots Hopped . | . . . . . . . Potential Cave-ins . | . . . . . . . Cave-ins Triggered 5 | . . . . . . 5 Exploration Rate (%) 33 | 3 22 13 65 94 16 18 Regions Visited 6 Branch Regions 4 Pre-discovered Areas . | . . . . . . . Known Exits Taken . | . . . . . . . Unknown Exits Taken 6 | 1 1 1 1 1 1 . Scrap Searched 2 | . . . . 2 . . Spaces Dug 19 | . 1 . . 11 3 4 Terrain Destroyed 20 | . 1 . . 12 3 4 Melee 7 | . . . . . 3 4 Projectile 13 | . 1 . . 12 . . AOE . | . . . . . . . Terrain Rammed . | . . . . . . . Walls Destroyed . | . . . . . . . Machines Disabled . | . . . . . . . Actions | -11 -10 -10 -10 -9 -8 -8 --------- Run | Yrd Mat Min Exi Min Mat Sto Total 1682 | 49 105 26 300 708 355 139 Wait 235 | . . . . 68 167 . Move 1314 | 40 96 26 284 602 174 92 Hop . | . . . . . . . Pick Up 24 | 3 5 . 9 3 1 3 Fast Attach 15 | 5 . . . 3 4 3 Attach 4 | 1 1 . . . 2 . Detach . | . . . . . . . Swap 7 | . 1 . . 1 1 4 Drop 19 | . . . 7 6 2 4 Fire 19 | . 2 . . 17 . . Melee 45 | . . . . 8 4 33 Ram . | . . . . . . . Kick . | . . . . . . . Crush . | . . . . . . . Escape Stasis . | . . . . . . . Rewire . | . . . . . . . Trap . | . . . . . . . Miscellaneous . | . . . . . . . Route ------- -11/Scrapyard -10/Materials -10/Mines (discovered 2 exits: [*Mat] / *Exi) -10/Exiles -9/Mines -8/Materials (discovered 2 exits: Fac / *Sto) -8/Storage History --------- Turn | Location | Event 22 | -11/Scrapyard | Discovered new exit (range 15) 49 | -11/Scrapyard | Entered Materials 79 | -10/Materials | Discovered new exit (range 16) 150 | -10/Materials | Entered Mines 160 | -10/Mines | Discovered new exit (range 9) 170 | -10/Mines | Deemed a non-threat by the Exiles lab entrance 170 | -10/Mines | Discovered new exit (range 5) 174 | -10/Mines | Entered Exiles 199 | -10/Exiles | Met 8R-AWN 213 | -10/Exiles | Met EX-HEX 285 | -10/Exiles | Met EX-BIN 297 | -10/Exiles | Aligned with FarCom system 298 | -10/Exiles | Given EX-Vault access code 311 | -10/Exiles | Build established: Mutant 319 | -10/Exiles | Opened EX-Vault 325 | -10/Exiles | Found Deploy-a-Sentry 327 | -10/Exiles | Found Deploy-a-Sentry 329 | -10/Exiles | Found Deploy-a-Sentry 348 | -10/Exiles | Warned to stay clear of 0b10 Research branches 360 | -10/Exiles | Exiles lab attacked by MAIN.C 435 | -10/Exiles | Discovered new exit (range 11) 443 | -10/Exiles | Left Exiles lab with Deploy-a-Sentry 443 | -10/Exiles | Entered Mines 734 | -9/Mines | Build established: Skirmisher 1037 | -9/Mines | Discovered new exit (range 7) 1045 | -9/Mines | Entered Materials 1045 | -8/Materials | Evolved 4 slots: Power x1, Propulsion x2, Utility x1 1046 | -8/Materials | Identified exit to Factory 1157 | -8/Materials | Central database locked down 1371 | -8/Materials | Discovered new exit (range 14) 1381 | -8/Materials | Entered Storage 1442 | -8/Storage | Build established: Scientist-Assassin 1495 | -8/Storage | Crushed by falling debris 1495 | -8/Storage | System corruption reached 10% 1515 | -8/Storage | Crushed by falling debris 1523 | -8/Storage | Crushed by falling debris 1546 | -8/Storage | Lost 5 parts (1p3n1w) 1550 | -8/Storage | Crushed by falling debris 1554 | -8/Storage | Crushed by falling debris 1554 | -8/Storage | Self-destructed Last Messages --------------- lost. The unstable cave ceiling collapses. Crushed by falling debris. Mining Laser destroyed. System corrupted by crushing effect (+4). The unstable cave ceiling collapses. Crushed by falling debris. System corrupted: Matter fused (-8). System corrupted: Energy discharge (-112). The unstable cave ceiling collapses. Crushed by falling debris. Sml. Storage Unit destroyed. Deploy-a-Sentry crushed and broken. System corrupted by crushing effect (+4). The unstable cave ceiling collapses. Crushed by falling debris. Airjet destroyed. System corrupted by crushing effect (+2). Flail+ destroyed. System corrupted by crushing effect (+3). Map ----- +----------------------------------------------------+ | ????######??#"""## #???? | | ????+ ###"Y"########+######????? | | ????# ]!! #????? | | ????# ]!! #????? | | ????# ]! " #????? | | ????# "G" ######+######????# | | ?????# " " ## #?????? | | ?????# ## ""!" #?#???? | | ?????# ## "!!" #?????? | | ?????# """"" ## "! " #?????? | | ?????# """"" ## "!!" #?????? | | ?????+ """"" ## " " #?????? | | ??????? ## """" #??#??? | | ???????? ## #????#? | | ?????? ?""""" ############?#???? | | ????????""""" #?# #?????? | | ????# """"" ### #?????? | | ??? # #?#???# | | ??? + % #?????? | | ??? # #?????# | | ????# #[ ##????? | | ????###+#########w #! ##???#? | | ?????????????#??# # #?????? | | ???????????????## # #?????? | | ????????????????# ##########????## | | ????????????????# #??##@#?????#?#? | | ??????????????#?# #???####?????#?? | | ????????????????# #? ?###????#???? | | ??????????? ????# ##?????????????? | | ?????????? ????## #??????????????? | | ????????????????# #??????#???#???? | | ??????????????Y?# ? ???#?????????? | | ????????????????# g ???????????????? | | ???????????? ???? ???????????????? | | ?????????????????gl????????#???#???? | | ?????????????????????????#?????????? | | ????????????????????#??????#???????? | | ????????????????? ????#????????????? | | ????????????????????????????#??????? | | ???????????????????????????????????? | | ??????????????????????#??????#?????? | | ???????????????????????????????????? | | ???????????????????????????????????? | | ???????????????????????????????????? | | ???????????????????????????????????? | | ???????????????????????????????????? | | ???????????????????????????????????? | | ???????????????????????????????????? | | ???????????????????????????????????? | | ???????????????????????????????????? | +----------------------------------------------------+ Best States ------------- Heat Dissipation 31 Energy Generation 25 Energy Capacity 455 Matter Stores 300 Matter Capacity 300 Sight Range 16 Terrain Scan Range 16 Terrain Scan Density 10 Additional Mass Support 6 Evasion (%) 53 Item Schematics ----------------- None Robot Schematics ------------------ None Fabricated ------------ Nothing Repaired ---------- Nothing Studied --------- Imp. Hover Unit | -8/Materials | Hacked Deuterium Engine | -8/Materials | Hacked Flail | -8/Materials | Hacked Particle Cannon | -8/Materials | Hacked Hover Unit | -8/Materials | Hacked Com. Wheel | -8/Materials | Hacked Wheel | -8/Materials | Hacked Alien Tech Used ----------------- None Achievements -------------- None Challenges ------------ None Game ------ Seed TowerColdLeg Manual? 0 Play Time 00:31:05 Cumulative 51.9 hours Start 2026.08.20 @ 09:54:47 End 2026.08.20 @ 10:32:27 Sessions 1 Manual Loads 0 Difficulty Rogue Special Mode None Game No. 66 Rogue 66 Adventurer 0 Explorer 0 Win Type - Total 0 Types 0/0/0/0/0/0/0/0/0/0 Lore% 42 Gallery% 31 Achievement% 28 Wizard Run 0 Options --------- Layout 1 ASCII 0 Keyboard 0 Movement Mouse Keybinds 0 Fullscreen 2 Font 18/SmallcapsGlow Map View 51x43 Zoom Use 0% Tactical HUD 0 Map Filters NONE Filters NONE Steam 1 RUN: 5879e164-4506-4eaf-b8f5-b9017d78a176